[Event "*** Titled Tuesday 3|2 Blitz (Early)"]
[Site "Chess.com"]
[Date "2017.01.03"]
[Round "1"]
[White "Egorov_Pavel"]
[Black "QuintilianoR"]
[Result "0-1"]
[WhiteElo "2287"]
[BlackElo "2554"]
[TimeControl "180+2"]
[EndTime "11:13:35 PST"]
[Termination "QuintilianoR won on time"]

1. d4 {[%clk 0:03:02]} 1... d5 {[%clk 0:03:00.7]} 2. c4 {[%clk 0:03:02.1]} 2...
e6 {[%clk 0:03:02.1]} 3. Nc3 {[%clk 0:03:03.2]} 3... c6 {[%clk 0:03:03.6]} 4.
Nf3 {[%clk 0:03:03.6]} 4... dxc4 {[%clk 0:03:03.2]} 5. a4 {[%clk 0:03:04.6]}
5... Bb4 {[%clk 0:03:02.2]} 6. e3 {[%clk 0:02:56.7]} 6... b5 {[%clk 0:03:02.7]}
7. Bd2 {[%clk 0:02:57]} 7... a5 {[%clk 0:03:03]} 8. axb5 {[%clk 0:02:49.9]} 8...
Bxc3 {[%clk 0:03:04.1]} 9. Bxc3 {[%clk 0:02:51.4]} 9... cxb5 {[%clk 0:03:06]}
10. b3 {[%clk 0:02:51.3]} 10... Bb7 {[%clk 0:03:06.3]} 11. bxc4 {[%clk
0:02:52.7]} 11... b4 {[%clk 0:03:07.8]} 12. Bb2 {[%clk 0:02:53.1]} 12... Nf6
{[%clk 0:03:09.3]} 13. Bd3 {[%clk 0:02:52.4]} 13... Nbd7 {[%clk 0:03:10.1]} 14.
O-O {[%clk 0:02:53.8]} 14... O-O {[%clk 0:03:10.2]} 15. Nd2 {[%clk 0:02:50.6]}
15... Qc7 {[%clk 0:03:10.2]} 16. f3 {[%clk 0:02:46.7]} 16... e5 {[%clk
0:03:09.7]} 17. Bc2 {[%clk 0:02:29.1]} 17... Rfd8 {[%clk 0:03:04.7]} 18. Qe1
{[%clk 0:02:18.6]} 18... exd4 {[%clk 0:02:56.6]} 19. exd4 {[%clk 0:02:20.1]}
19... Nb6 {[%clk 0:02:54.8]} 20. c5 {[%clk 0:02:06.6]} 20... Nbd5 {[%clk
0:02:54.9]} 21. Ne4 {[%clk 0:02:02.3]} 21... Re8 {[%clk 0:02:52.4]} 22. Qh4
{[%clk 0:02:03.1]} 22... Bc6 {[%clk 0:02:49.1]} 23. Nxf6+ {[%clk 0:01:56.2]}
23... Nxf6 {[%clk 0:02:51]} 24. d5 {[%clk 0:01:31.4]} 24... Bxd5 {[%clk
0:02:50.9]} 25. Bxf6 {[%clk 0:01:32.7]} 25... Qxc5+ {[%clk 0:02:51.5]} 26. Bd4
{[%clk 0:01:26]} 26... Qxc2 {[%clk 0:02:52]} 27. Qg5 {[%clk 0:01:27.4]} 27...
Qg6 {[%clk 0:02:48.7]} 28. Qxd5 {[%clk 0:01:27.2]} 28... Rad8 {[%clk 0:02:49.7]}
29. Qc4 {[%clk 0:01:22.5]} 29... Rc8 {[%clk 0:02:39.2]} 30. Qb5 {[%clk
0:01:03.9]} 30... Red8 {[%clk 0:02:35.6]} 31. Bf2 {[%clk 0:00:56.1]} 31... Rb8
{[%clk 0:02:24.6]} 32. Qxa5 {[%clk 0:00:54.2]} 32... b3 {[%clk 0:02:24.8]} 33.
Rad1 {[%clk 0:00:52.4]} 33... Rdc8 {[%clk 0:02:19.2]} 34. Bg3 {[%clk 0:00:52]}
34... Qb6+ {[%clk 0:02:15.1]} 35. Qxb6 {[%clk 0:00:49.8]} 35... Rxb6 {[%clk
0:02:17]} 36. Rb1 {[%clk 0:00:46]} 36... g5 {[%clk 0:02:09.8]} 37. Rb2 {[%clk
0:00:43.6]} 37... Rc3 {[%clk 0:02:04.7]} 38. Be5 {[%clk 0:00:41.1]} 38... Rd3
{[%clk 0:02:02.8]} 39. Rc1 {[%clk 0:00:40.6]} 39... f6 {[%clk 0:02:01.9]} 40.
Bc7 {[%clk 0:00:29.3]} 40... Rb5 {[%clk 0:01:59]} 41. Kf2 {[%clk 0:00:29.4]}
41... Kf7 {[%clk 0:01:57.5]} 42. Ke2 {[%clk 0:00:30.8]} 42... Rd7 {[%clk
0:01:58.1]} 43. Rc3 {[%clk 0:00:27.6]} 43... h5 {[%clk 0:01:50.9]} 44. Bg3
{[%clk 0:00:28.9]} 44... h4 {[%clk 0:01:50.7]} 45. Bf2 {[%clk 0:00:26.6]} 45...
Re7+ {[%clk 0:01:51.6]} 46. Kd2 {[%clk 0:00:24.3]} 46... Reb7 {[%clk 0:01:50.6]}
47. Rc5 {[%clk 0:00:23.3]} 47... R5b6 {[%clk 0:01:43.2]} 48. Kc3 {[%clk
0:00:23.3]} 48... Kg6 {[%clk 0:01:42.7]} 49. Rc4 {[%clk 0:00:23]} 49... Rb5
{[%clk 0:01:42.4]} 50. Bc5 {[%clk 0:00:21.4]} 50... f5 {[%clk 0:01:39.9]} 51.
Bb4 {[%clk 0:00:22.6]} 51... Kh5 {[%clk 0:01:41.1]} 52. Rxb3 {[%clk 0:00:23]}
52... Rb8 {[%clk 0:01:40.7]} 53. g3 {[%clk 0:00:23.2]} 53... hxg3 {[%clk
0:01:40.9]} 54. hxg3 {[%clk 0:00:24.8]} 54... R8b6 {[%clk 0:01:41]} 55. g4+
{[%clk 0:00:26]} 55... Kg6 {[%clk 0:01:39.4]} 56. gxf5+ {[%clk 0:00:26.6]} 56...
Rxf5 {[%clk 0:01:38]} 57. Kb2 {[%clk 0:00:25]} 57... Rfb5 {[%clk 0:01:36.8]} 58.
Ka3 {[%clk 0:00:24.5]} 58... Ra6+ {[%clk 0:01:36.7]} 59. Kb2 {[%clk 0:00:25.9]}
59... Rab6 {[%clk 0:01:30.2]} 60. Kc2 {[%clk 0:00:26.1]} 60... Kh5 {[%clk
0:01:29.2]} 61. Kc3 {[%clk 0:00:25.2]} 61... Kg6 {[%clk 0:01:29]} 62. Rb2 {[%clk
0:00:24.6]} 62... Rf6 {[%clk 0:01:24.6]} 63. f4 {[%clk 0:00:21]} 63... Rxf4
{[%clk 0:01:22.9]} 64. Rxf4 {[%clk 0:00:16.7]} 64... gxf4 {[%clk 0:01:19.3]} 65.
Kc4 {[%clk 0:00:18]} 65... Re5 {[%clk 0:01:19.9]} 66. Rf2 {[%clk 0:00:18]} 66...
Kf5 {[%clk 0:01:19.8]} 67. Kd3 {[%clk 0:00:14.1]} 67... Rd5+ {[%clk 0:01:12.4]}
68. Ke2 {[%clk 0:00:15.3]} 68... Ke4 {[%clk 0:01:09.2]} 69. Bd2 {[%clk
0:00:13.6]} 69... f3+ {[%clk 0:01:03.9]} 70. Kd1 {[%clk 0:00:13]} 70... Rh5
{[%clk 0:00:59.9]} 71. Kc2 {[%clk 0:00:12.6]} 71... Rc5+ {[%clk 0:00:57.4]} 72.
Kb3 {[%clk 0:00:13.1]} 72... Rd5 {[%clk 0:00:56.1]} 73. Bh6 {[%clk 0:00:10.1]}
73... Rb5+ {[%clk 0:00:51.7]} 74. Kc3 {[%clk 0:00:10.1]} 74... Rh5 {[%clk
0:00:49]} 75. Bd2 {[%clk 0:00:09.6]} 75... Rc5+ {[%clk 0:00:49.4]} 76. Kb4
{[%clk 0:00:10]} 76... Rc2 {[%clk 0:00:48.4]} 77. Kb3 {[%clk 0:00:09.5]} 77...
Rc7 {[%clk 0:00:46]} 78. Bg5 {[%clk 0:00:05.5]} 78... Rg7 {[%clk 0:00:46.5]} 79.
Bd2 {[%clk 0:00:05.8]} 79... Rg2 {[%clk 0:00:47.5]} 80. Be1 {[%clk 0:00:07.1]}
80... Rg1 {[%clk 0:00:48.6]} 81. Bd2 {[%clk 0:00:08.4]} 81... Rg2 {[%clk
0:00:45.9]} 82. Be1 {[%clk 0:00:08.9]} 82... Ke3 {[%clk 0:00:46.9]} 83. Rxf3+
{[%clk 0:00:04.1]} 83... Kxf3 {[%clk 0:00:47.6]} 84. Bc3 {[%clk 0:00:05.7]}
84... Ke4 {[%clk 0:00:48.7]} 85. Kc4 {[%clk 0:00:07.3]} 85... Rc2 {[%clk
0:00:50.1]} 86. Kb3 {[%clk 0:00:07.6]} 86... Kd3 {[%clk 0:00:51.5]} 87. Bb4
{[%clk 0:00:09.2]} 87... Rc7 {[%clk 0:00:52.3]} 88. Ka4 {[%clk 0:00:06.7]} 88...
Rb7 {[%clk 0:00:52.6]} 89. Ka5 {[%clk 0:00:07.3]} 89... Kc4 {[%clk 0:00:53.8]}
90. Bd6 {[%clk 0:00:08.3]} 90... Kd5 {[%clk 0:00:51.9]} 91. Bf8 {[%clk
0:00:06.9]} 91... Kc4 {[%clk 0:00:52]} 92. Bd6 {[%clk 0:00:07.2]} 92... Rd7
{[%clk 0:00:52.9]} 93. Bb8 {[%clk 0:00:07]} 93... Rd5+ {[%clk 0:00:53.5]} 94.
Kb6 {[%clk 0:00:07.3]} 94... Rb5+ {[%clk 0:00:54.6]} 95. Kc7 {[%clk 0:00:08.7]}
95... Kd5 {[%clk 0:00:55.5]} 96. Ba7 {[%clk 0:00:09]} 96... Rb1 {[%clk
0:00:55.5]} 97. Bb6 {[%clk 0:00:09.8]} 97... Rh1 {[%clk 0:00:49.4]} 98. Be3
{[%clk 0:00:08.6]} 98... Rh7+ {[%clk 0:00:47.3]} 99. Kb6 {[%clk 0:00:09.7]}
99... Re7 {[%clk 0:00:48.6]} 100. Bg5 {[%clk 0:00:09.5]} 100... Re6+ {[%clk
0:00:49.8]} 101. Kc7 {[%clk 0:00:08.3]} 101... Rc6+ {[%clk 0:00:50.6]} 102. Kd7
{[%clk 0:00:09.3]} 102... Rg6 {[%clk 0:00:51.7]} 103. Be7 {[%clk 0:00:07.1]}
103... Rg7 {[%clk 0:00:52.7]} 104. Ke8 {[%clk 0:00:06]} 104... Ke6 {[%clk
0:00:53.6]} 0-1

[Event "*** Titled Tuesday 3|2 Blitz (Early)"]
[Site "Chess.com"]
[Date "2017.01.03"]
[Round "2"]
[White "boredoldman"]
[Black "Vrolijk"]
[Result "1-0"]
[WhiteElo "2494"]
[BlackElo "2252"]
[TimeControl "180+2"]
[EndTime "11:18:04 PST"]
[Termination "boredoldman won by resignation"]

1. e4 {[%clk 0:03:02]} 1... e6 {[%clk 0:03:00.4]} 2. d4 {[%clk 0:02:59.6]} 2...
d5 {[%clk 0:03:01.6]} 3. Nd2 {[%clk 0:03:00.3]} 3... c5 {[%clk 0:03:00.1]} 4.
Ngf3 {[%clk 0:03:00.9]} 4... cxd4 {[%clk 0:02:57.2]} 5. Nxd4 {[%clk 0:03:02.3]}
5... Nf6 {[%clk 0:02:58.1]} 6. exd5 {[%clk 0:02:56.5]} 6... Nxd5 {[%clk
0:02:58]} 7. N2f3 {[%clk 0:02:56.3]} 7... Bb4+ {[%clk 0:02:51.9]} 8. c3 {[%clk
0:02:55.4]} 8... Nxc3 {[%clk 0:02:51.9]} 9. bxc3 {[%clk 0:02:56.7]} 9... Bxc3+
{[%clk 0:02:53.5]} 10. Bd2 {[%clk 0:02:53.1]} 10... Bxd4 {[%clk 0:02:54.1]} 11.
Bb5+ {[%clk 0:02:26]} 11... Nc6 {[%clk 0:02:45.6]} 12. Nxd4 {[%clk 0:02:27]}
12... Qxd4 {[%clk 0:02:45.6]} 13. O-O {[%clk 0:02:28.9]} 13... O-O {[%clk
0:02:44.3]} 14. Qc2 {[%clk 0:02:29]} 14... Bd7 {[%clk 0:02:28.2]} 15. Rfd1
{[%clk 0:02:27.5]} 15... Qh4 {[%clk 0:02:16.6]} 16. Bc3 {[%clk 0:02:26.2]} 16...
Rfd8 {[%clk 0:02:09.3]} 17. g3 {[%clk 0:02:19.9]} 17... Qh5 {[%clk 0:01:59.1]}
18. Be2 {[%clk 0:02:18.3]} 18... Qh6 {[%clk 0:01:54.4]} 19. Rab1 {[%clk
0:02:12.5]} 19... b6 {[%clk 0:01:51.9]} 20. Rd6 {[%clk 0:02:10.4]} 20... Ne7
{[%clk 0:01:45.3]} 21. Rbd1 {[%clk 0:02:08.9]} 21... Nd5 {[%clk 0:01:43.5]} 22.
R1xd5 {[%clk 0:02:07.7]} 22... exd5 {[%clk 0:01:43.3]} 23. Rxh6 {[%clk
0:02:06.3]} 1-0

[Event "*** Titled Tuesday 3|2 Blitz (Early)"]
[Site "Chess.com"]
[Date "2017.01.03"]
[Round "2"]
[White "Andrejkin"]
[Black "pastouche06"]
[Result "1/2-1/2"]
[WhiteElo "2184"]
[BlackElo "2343"]
[TimeControl "180+2"]
[EndTime "11:18:17 PST"]
[Termination "Game drawn by agreement"]

1. e4 {[%clk 0:03:02]} 1... c6 {[%clk 0:03:01.1]} 2. d4 {[%clk 0:03:02.4]} 2...
d5 {[%clk 0:03:01.9]} 3. Nc3 {[%clk 0:03:04.3]} 3... b5 {[%clk 0:03:01]} 4. exd5
{[%clk 0:03:02.3]} 4... b4 {[%clk 0:03:01.6]} 5. Na4 {[%clk 0:03:03.9]} 5...
cxd5 {[%clk 0:03:02.2]} 6. Nc5 {[%clk 0:02:56.7]} 6... e6 {[%clk 0:03:01.3]} 7.
Bb5+ {[%clk 0:02:53.4]} 7... Nd7 {[%clk 0:03:02.1]} 8. Bf4 {[%clk 0:02:50.1]}
8... Qb6 {[%clk 0:02:40.7]} 9. Bxd7+ {[%clk 0:02:44.7]} 9... Bxd7 {[%clk
0:02:42.6]} 10. Nxd7 {[%clk 0:02:46.6]} 10... Kxd7 {[%clk 0:02:43.4]} 11. Nf3
{[%clk 0:02:45.4]} 11... f6 {[%clk 0:02:39.7]} 12. c4 {[%clk 0:02:38.4]} 12...
bxc3 {[%clk 0:02:31.9]} 13. bxc3 {[%clk 0:02:40.3]} 13... Bd6 {[%clk 0:02:25.8]}
14. Qa4+ {[%clk 0:02:32.4]} 14... Qc6 {[%clk 0:02:24.2]} 15. Qxc6+ {[%clk
0:02:34]} 15... Kxc6 {[%clk 0:02:26.1]} 16. Bxd6 {[%clk 0:02:35.3]} 16... Kxd6
{[%clk 0:02:27.3]} 17. Kd2 {[%clk 0:02:32.1]} 17... Ne7 {[%clk 0:02:28.1]} 18.
Rhb1 {[%clk 0:02:27.7]} 18... Rhc8 {[%clk 0:02:20.2]} 19. Rb7 {[%clk 0:02:24.1]}
19... Rc7 {[%clk 0:02:21.3]} 20. Rxc7 {[%clk 0:02:22.2]} 20... Kxc7 {[%clk
0:02:23.2]} 21. Rb1 {[%clk 0:02:23.7]} 21... Nc6 {[%clk 0:02:15.4]} 22. Kd3
{[%clk 0:02:22.5]} 22... Rb8 {[%clk 0:02:12]} 23. Rxb8 {[%clk 0:02:20.3]} 23...
Nxb8 {[%clk 0:02:13.9]} 24. c4 {[%clk 0:02:22.2]} 24... dxc4+ {[%clk 0:02:12]}
25. Kxc4 {[%clk 0:02:24.1]} 25... Kc6 {[%clk 0:02:12]} 26. Nd2 {[%clk
0:02:22.6]} 26... Nd7 {[%clk 0:02:12.7]} 27. Ne4 {[%clk 0:02:20.8]} 27... Nb6+
{[%clk 0:02:12.6]} 28. Kd3 {[%clk 0:02:22.3]} 28... Nd7 {[%clk 0:02:04.9]} 29.
Kc4 {[%clk 0:02:20.9]} 29... Nb6+ {[%clk 0:02:05.7]} 30. Kd3 {[%clk 0:02:18.6]}
1/2-1/2

[Event "*** Titled Tuesday 3|2 Blitz (Early)"]
[Site "Chess.com"]
[Date "2017.01.03"]
[Round "2"]
[White "MFBerna"]
[Black "Mepetmepe"]
[Result "1-0"]
[WhiteElo "2199"]
[BlackElo "2358"]
[TimeControl "180+2"]
[EndTime "11:18:28 PST"]
[Termination "MFBerna won by resignation"]

1. e4 {[%clk 0:02:57.5]} 1... e5 {[%clk 0:02:58.4]} 2. Nf3 {[%clk 0:02:57.9]}
2... Nc6 {[%clk 0:02:59.4]} 3. Bb5 {[%clk 0:02:58.3]} 3... a6 {[%clk 0:03:00.5]}
4. Ba4 {[%clk 0:02:59.1]} 4... Nf6 {[%clk 0:03:01.7]} 5. O-O {[%clk 0:03:00.2]}
5... Nxe4 {[%clk 0:03:02.9]} 6. d4 {[%clk 0:03:00.8]} 6... b5 {[%clk 0:03:03.6]}
7. Bb3 {[%clk 0:03:01.9]} 7... d5 {[%clk 0:03:04.9]} 8. dxe5 {[%clk 0:03:03.1]}
8... Be6 {[%clk 0:03:06]} 9. c3 {[%clk 0:03:03.6]} 9... Be7 {[%clk 0:03:07.2]}
10. Nbd2 {[%clk 0:03:04.4]} 10... Nc5 {[%clk 0:03:08.2]} 11. Bc2 {[%clk
0:03:05.1]} 11... d4 {[%clk 0:03:09]} 12. Nb3 {[%clk 0:03:03.8]} 12... d3 {[%clk
0:03:08.6]} 13. Bb1 {[%clk 0:03:04.7]} 13... Nxb3 {[%clk 0:02:51.2]} 14. axb3
{[%clk 0:03:03.6]} 14... Qd5 {[%clk 0:02:52.6]} 15. Qxd3 {[%clk 0:02:56.6]}
15... Qxd3 {[%clk 0:01:57.3]} 16. Bxd3 {[%clk 0:02:56.6]} 16... O-O {[%clk
0:01:59.2]} 17. Be4 {[%clk 0:02:55.1]} 17... Bd7 {[%clk 0:01:56.8]} 18. Rd1
{[%clk 0:02:52.9]} 18... Be8 {[%clk 0:01:57.5]} 19. Nd4 {[%clk 0:02:43.5]} 19...
Nxd4 {[%clk 0:01:57.6]} 20. Bxa8 {[%clk 0:02:42]} 20... Nxb3 {[%clk 0:01:58.8]}
21. Rxa6 {[%clk 0:02:40.8]} 21... b4 {[%clk 0:01:55.4]} 22. Be3 {[%clk
0:02:33.6]} 22... Bb5 {[%clk 0:01:53.1]} 23. Ra7 {[%clk 0:02:30.4]} 23... Bd8
{[%clk 0:01:21.6]} 24. Bd5 {[%clk 0:02:25.9]} 1-0

[Event "*** Titled Tuesday 3|2 Blitz (Early)"]
[Site "Chess.com"]
[Date "2017.01.03"]
[Round "2"]
[White "Kawhi_Leonard2"]
[Black "capatl"]
[Result "1-0"]
[WhiteElo "2206"]
[BlackElo "2343"]
[TimeControl "180+2"]
[EndTime "11:18:47 PST"]
[Termination "Kawhi_Leonard2 won by resignation"]

1. e4 {[%clk 0:03:02]} 1... c5 {[%clk 0:02:57.7]} 2. Nf3 {[%clk 0:03:03]} 2...
e6 {[%clk 0:02:57.1]} 3. d4 {[%clk 0:03:04.5]} 3... cxd4 {[%clk 0:02:58.5]} 4.
Nxd4 {[%clk 0:03:06.4]} 4... a6 {[%clk 0:02:59.7]} 5. Nc3 {[%clk 0:03:08]} 5...
Qc7 {[%clk 0:02:59.2]} 6. Be2 {[%clk 0:03:07.4]} 6... b5 {[%clk 0:02:57.6]} 7.
Bf3 {[%clk 0:03:07.5]} 7... Bb7 {[%clk 0:02:58.8]} 8. O-O {[%clk 0:03:07.9]}
8... Nc6 {[%clk 0:02:59.2]} 9. Nxc6 {[%clk 0:03:03.2]} 9... dxc6 {[%clk
0:02:59.6]} 10. a4 {[%clk 0:02:59]} 10... e5 {[%clk 0:02:54.6]} 11. axb5 {[%clk
0:02:57.9]} 11... axb5 {[%clk 0:02:54.4]} 12. Rxa8+ {[%clk 0:02:58.2]} 12...
Bxa8 {[%clk 0:02:55.5]} 13. Be3 {[%clk 0:02:54.5]} 13... Nf6 {[%clk 0:02:42.6]}
14. Qa1 {[%clk 0:02:51.3]} 14... Bb7 {[%clk 0:02:33.7]} 15. Qa7 {[%clk
0:02:50.8]} 15... Be7 {[%clk 0:02:22.9]} 16. Bb6 {[%clk 0:02:47.3]} 16... Qc8
{[%clk 0:02:21.9]} 17. Bc5 {[%clk 0:02:48.1]} 17... Bxc5 {[%clk 0:01:48.9]} 18.
Qxc5 {[%clk 0:02:47.7]} 18... Nd7 {[%clk 0:01:49.1]} 19. Qa3 {[%clk 0:02:12.7]}
19... Qd8 {[%clk 0:01:43.8]} 20. Rd1 {[%clk 0:02:08]} 20... Qe7 {[%clk
0:01:44.6]} 21. Qa7 {[%clk 0:02:04.8]} 21... Bc8 {[%clk 0:01:44]} 22. Bg4 {[%clk
0:01:59.2]} 22... b4 {[%clk 0:01:42.7]} 23. Na4 {[%clk 0:01:38.1]} 23... O-O
{[%clk 0:01:41.4]} 24. Bxd7 {[%clk 0:01:37.1]} 24... Bxd7 {[%clk 0:01:40.4]} 25.
Qxd7 {[%clk 0:01:36.1]} 1-0

[Event "*** Titled Tuesday 3|2 Blitz (Early)"]
[Site "Chess.com"]
[Date "2017.01.03"]
[Round "2"]
[White "yian123"]
[Black "cassoulet"]
[Result "0-1"]
[WhiteElo "2361"]
[BlackElo "2329"]
[TimeControl "180+2"]
[EndTime "11:18:50 PST"]
[Termination "cassoulet won by resignation"]

1. e4 {[%clk 0:03:01.9]} 1... c5 {[%clk 0:02:53.7]} 2. Nf3 {[%clk 0:03:01.9]}
2... d6 {[%clk 0:02:55]} 3. d4 {[%clk 0:03:03.2]} 3... cxd4 {[%clk 0:02:56.9]}
4. Nxd4 {[%clk 0:03:04.7]} 4... Nf6 {[%clk 0:02:57.9]} 5. Nc3 {[%clk 0:03:05.5]}
5... Nc6 {[%clk 0:02:59.2]} 6. Bg5 {[%clk 0:03:06.1]} 6... e6 {[%clk 0:02:57.8]}
7. Qd3 {[%clk 0:03:06.4]} 7... a6 {[%clk 0:02:59.1]} 8. Nxc6 {[%clk 0:03:06.9]}
8... bxc6 {[%clk 0:02:59.5]} 9. Be2 {[%clk 0:03:08]} 9... Be7 {[%clk 0:03:00]}
10. Qg3 {[%clk 0:03:07.5]} 10... e5 {[%clk 0:02:57]} 11. O-O {[%clk 0:03:01.9]}
11... O-O {[%clk 0:02:56.8]} 12. Bh6 {[%clk 0:02:56.8]} 12... Ne8 {[%clk
0:02:56.7]} 13. Bd2 {[%clk 0:02:52]} 13... Bh4 {[%clk 0:02:51.5]} 14. Qd3 {[%clk
0:02:50.5]} 14... f5 {[%clk 0:02:48.5]} 15. exf5 {[%clk 0:02:48]} 15... Bxf5
{[%clk 0:02:50.4]} 16. Qc4+ {[%clk 0:02:48.8]} 16... d5 {[%clk 0:02:40.6]} 17.
Qxc6 {[%clk 0:02:49.5]} 17... d4 {[%clk 0:02:41.5]} 18. Na4 {[%clk 0:02:34.8]}
18... Rc8 {[%clk 0:02:35.6]} 19. Qxa6 {[%clk 0:02:31.5]} 19... Rxc2 {[%clk
0:02:35.1]} 20. Rac1 {[%clk 0:02:30.2]} 20... Rxd2 {[%clk 0:02:30.6]} 21. g3
{[%clk 0:02:27.4]} 21... Bg5 {[%clk 0:02:27.7]} 22. Bc4+ {[%clk 0:02:27.5]}
22... Kh8 {[%clk 0:02:27.4]} 23. Rce1 {[%clk 0:02:28.7]} 23... e4 {[%clk
0:02:24.5]} 24. Nc5 {[%clk 0:02:27.3]} 24... Nd6 {[%clk 0:02:18]} 25. Nb3 {[%clk
0:02:20.9]} 25... Rc2 {[%clk 0:02:07.7]} 26. Bd5 {[%clk 0:02:21.4]} 26... Bh3
{[%clk 0:02:02.8]} 27. Nxd4 {[%clk 0:02:19.7]} 27... Bxf1 {[%clk 0:02:02.8]} 28.
Rxf1 {[%clk 0:02:19]} 28... Rcxf2 {[%clk 0:01:53]} 29. Re1 {[%clk 0:02:16]}
29... Qf6 {[%clk 0:01:47.3]} 30. Ne6 {[%clk 0:02:06.9]} 30... Qxb2 {[%clk
0:01:43.4]} 0-1

[Event "*** Titled Tuesday 3|2 Blitz (Early)"]
[Site "Chess.com"]
[Date "2017.01.03"]
[Round "2"]
[White "lionheart95"]
[Black "sorito"]
[Result "1-0"]
[WhiteElo "2385"]
[BlackElo "2328"]
[TimeControl "180+2"]
[EndTime "11:19:02 PST"]
[Termination "lionheart95 won by resignation"]

1. e4 {[%clk 0:03:02]} 1... e6 {[%clk 0:03:00.5]} 2. d4 {[%clk 0:03:01.6]} 2...
d5 {[%clk 0:03:00.3]} 3. Nc3 {[%clk 0:03:03]} 3... Nf6 {[%clk 0:03:00.5]} 4. e5
{[%clk 0:03:03.9]} 4... Ne4 {[%clk 0:03:01.9]} 5. Bd3 {[%clk 0:03:00.2]} 5...
Nxc3 {[%clk 0:03:02]} 6. bxc3 {[%clk 0:03:00.5]} 6... c5 {[%clk 0:03:03]} 7. h4
{[%clk 0:03:00.6]} 7... Nc6 {[%clk 0:02:52.5]} 8. Nf3 {[%clk 0:02:58.8]} 8...
Bd7 {[%clk 0:02:53.2]} 9. h5 {[%clk 0:02:59.2]} 9... h6 {[%clk 0:02:53.9]} 10.
Bd2 {[%clk 0:02:57]} 10... c4 {[%clk 0:02:54.5]} 11. Be2 {[%clk 0:02:57.2]}
11... Be7 {[%clk 0:02:55.5]} 12. Rh3 {[%clk 0:02:52.5]} 12... f5 {[%clk
0:02:48.1]} 13. exf6 {[%clk 0:02:45.8]} 13... Bxf6 {[%clk 0:02:44.5]} 14. Rg3
{[%clk 0:02:40.3]} 14... Qe7 {[%clk 0:02:34.3]} 15. Kf1 {[%clk 0:02:30.8]} 15...
O-O-O {[%clk 0:02:32]} 16. Kg1 {[%clk 0:02:28.5]} 16... Rdf8 {[%clk 0:02:22.6]}
17. a4 {[%clk 0:02:25.6]} 17... e5 {[%clk 0:02:15.5]} 18. Bc1 {[%clk 0:02:25.2]}
18... e4 {[%clk 0:02:09]} 19. Ba3 {[%clk 0:02:23.5]} 19... Qf7 {[%clk
0:01:57.8]} 20. Bxf8 {[%clk 0:02:22.9]} 20... exf3 {[%clk 0:01:58.7]} 21. Bxf3
{[%clk 0:02:24.3]} 21... Rxf8 {[%clk 0:01:54.6]} 22. Bg4 {[%clk 0:02:22.5]}
22... Bh4 {[%clk 0:01:23.6]} 23. Rf3 {[%clk 0:02:20.9]} 23... Qe7 {[%clk
0:01:05]} 24. Rxf8+ {[%clk 0:02:20.8]} 24... Qxf8 {[%clk 0:01:03]} 25. Bxd7+
{[%clk 0:02:21.1]} 25... Kxd7 {[%clk 0:01:00.8]} 26. Qg4+ {[%clk 0:02:21.2]} 1-0

[Event "*** Titled Tuesday 3|2 Blitz (Early)"]
[Site "Chess.com"]
[Date "2017.01.03"]
[Round "2"]
[White "Imre91"]
[Black "1e41-0"]
[Result "1-0"]
[WhiteElo "2677"]
[BlackElo "2316"]
[TimeControl "180+2"]
[EndTime "11:19:46 PST"]
[Termination "Imre91 won by resignation"]

1. d4 {[%clk 0:03:02]} 1... d5 {[%clk 0:03:00.4]} 2. c4 {[%clk 0:03:02.8]} 2...
c6 {[%clk 0:03:01.5]} 3. Nf3 {[%clk 0:03:04.3]} 3... Nf6 {[%clk 0:03:02.5]} 4.
Qb3 {[%clk 0:03:05.4]} 4... dxc4 {[%clk 0:03:02.7]} 5. Qxc4 {[%clk 0:03:06.2]}
5... Bg4 {[%clk 0:03:04.3]} 6. Nbd2 {[%clk 0:03:06]} 6... Nbd7 {[%clk
0:03:04.6]} 7. g3 {[%clk 0:03:07.2]} 7... Qc7 {[%clk 0:03:05.5]} 8. Bg2 {[%clk
0:03:08.8]} 8... Rd8 {[%clk 0:03:06.7]} 9. O-O {[%clk 0:03:09.8]} 9... e5 {[%clk
0:03:03.9]} 10. dxe5 {[%clk 0:03:10.6]} 10... Nxe5 {[%clk 0:03:05.8]} 11. Nxe5
{[%clk 0:03:11.7]} 11... Qxe5 {[%clk 0:03:07.5]} 12. Nf3 {[%clk 0:03:12.5]}
12... Qe6 {[%clk 0:03:08.8]} 13. Qa4 {[%clk 0:03:12]} 13... Bc5 {[%clk
0:03:00.4]} 14. Bg5 {[%clk 0:03:12.6]} 14... Bh5 {[%clk 0:02:31.7]} 15. Bxf6
{[%clk 0:02:28.7]} 15... Qxf6 {[%clk 0:02:23.4]} 16. Qa5 {[%clk 0:02:29.5]}
16... Bxf3 {[%clk 0:01:59.9]} 17. Bxf3 {[%clk 0:02:26.2]} 17... Bb6 {[%clk
0:02:00.3]} 18. Qb4 {[%clk 0:02:27.3]} 18... Qe7 {[%clk 0:02:00.3]} 19. Qb3
{[%clk 0:02:28.1]} 19... O-O {[%clk 0:02:00.3]} 20. a4 {[%clk 0:02:29.6]} 20...
Rd2 {[%clk 0:01:46.2]} 21. a5 {[%clk 0:02:29.6]} 21... Bd4 {[%clk 0:01:45.9]}
22. Rab1 {[%clk 0:02:23.1]} 22... Rd8 {[%clk 0:01:43.8]} 23. Kg2 {[%clk
0:02:23.4]} 23... h6 {[%clk 0:01:35.7]} 24. Rfd1 {[%clk 0:02:21.5]} 24... Bf6
{[%clk 0:01:32.4]} 25. Rxd2 {[%clk 0:02:21.1]} 25... Rxd2 {[%clk 0:01:34.3]} 26.
a6 {[%clk 0:02:22.3]} 26... bxa6 {[%clk 0:01:31.4]} 27. Qb8+ {[%clk 0:02:16.2]}
27... Kh7 {[%clk 0:01:31.8]} 28. Qc8 {[%clk 0:02:16.9]} 28... Qe5 {[%clk
0:01:23.7]} 29. Qxa6 {[%clk 0:02:11.6]} 29... Rxb2 {[%clk 0:01:20.4]} 30. Rc1
{[%clk 0:02:11.9]} 30... Qb5 {[%clk 0:01:06.3]} 31. Qxa7 {[%clk 0:02:10.3]}
31... Qb6 {[%clk 0:01:02.5]} 32. Qxf7 {[%clk 0:02:09.8]} 32... Qd4 {[%clk
0:00:56.6]} 33. Rc4 {[%clk 0:02:07.3]} 33... Qe5 {[%clk 0:00:54.4]} 34. Be4+
{[%clk 0:02:07.6]} 1-0